Workbook

Sheet calculs2 (hidden)
F1: ='Données-Résultats'!G16 -> Circuit A | H1: ='Données-Résultats'!J16 -> Circuit B | J1: ='Données-Résultats'!M16 -> Circuit C | L1: ='Données-Résultats'!P16 -> Circuit D
B3: ='Données-Résultats'!C16 -> Utilisation
B4: ='Données-Résultats'!C19 -> Référence | C4: ='Données-Résultats'!D19 -> - | D4: ='Données-Résultats'!E19 -> - | E4: ='Données-Résultats'!F19 -> : | F4: ='Données-Résultats'!G19 -> 0 | G4: choix1 | H4: ='Données-Résultats'!J19 -> 0 | I4: choix2 | J4: ='Données-Résultats'!M19 -> 0 | K4: choix3 | L4: ='Données-Résultats'!P19 -> 0 | M4: choix4
B5: ='Données-Résultats'!C20 -> Puissance nominale d'utilisation | C5: ='Données-Résultats'!D20 -> Pu | D5: ='Données-Résultats'!E20 -> kW | E5: ='Données-Résultats'!F20 -> : | F5: ='Données-Résultats'!G20 -> 0 | H5: ='Données-Résultats'!J20 -> 0 | J5: ='Données-Résultats'!M20 -> 0 | L5: ='Données-Résultats'!P20 -> 0
B6: ='Données-Résultats'!C21 -> Température de départ nominale | C6: Tdu | D6: ='Données-Résultats'!E21 -> °C | E6: ='Données-Résultats'!F21 -> : | F6: ='Données-Résultats'!G21 -> 0 | H6: ='Données-Résultats'!J21 -> 0 | J6: ='Données-Résultats'!M21 -> 0 | L6: ='Données-Résultats'!P21 -> 0
B7: maximum T départ | D7: °C | E7: =MAX(F6,H6,J6,L6) -> 0
B8: ='Données-Résultats'!C29 -> Température de retour d'utilisation | C8: Tru | D8: ='Données-Résultats'!E22 -> °C | E8: ='Données-Résultats'!F22 -> : | F8: ='Données-Résultats'!H22 -> 0 | G8: ='Données-Résultats'!G22 -> 0 | H8: ='Données-Résultats'!K22 -> 0 | I8: ='Données-Résultats'!J22 -> 0 | J8: ='Données-Résultats'!N22 -> 0 | K8: ='Données-Résultats'!M22 -> 0 | L8: ='Données-Résultats'!Q22 -> 0 | M8: ='Données-Résultats'!P22 -> 0
B9: ou Débit d'utilisation | C9: qvu | D9: m3/h | E9: :
B11: Débit d'utilisation | C11: qvu | F11: =IF(G8="Tru",F5/(1.163*(F6-F8)),"***") -> *** | H11: =IF(I8="Tru",H5/(1.163*(H6-H8)),"***") -> *** | J11: =IF(K8="Tru",J5/(1.163*(J6-J8)),"***") -> *** | L11: =IF(M8="Tru",L5/(1.163*(L6-L8)),"***") -> ***
B12: valeur sans div0 | F12: =IF(OR(F5=0,F6=0,F8=0),0,F11) -> 0 | H12: =IF(OR(H5=0,H6=0,H8=0),0,H11) -> 0 | J12: =IF(OR(J5=0,J6=0,J8=0),0,J11) -> 0 | L12: =IF(OR(L5=0,L6=0,L8=0),0,L11) -> 0
B13: Temp retour utilisation | C13: Tru | F13: =IF(G8="qvu",F6-(F5/(F8*1.163)),"***") -> *** | H13: =IF(I8="qvu",H6-(H5/(H8*1.163)),"***") -> *** | J13: =IF(K8="qvu",J6-(J5/(J8*1.163)),"***") -> *** | L13: =IF(M8="qvu",L6-(L5/(L8*1.163)),"***") -> ***
B14: valeur sans div0 | F14: =IF(OR(F5=0,F6=0,F8=0),0,F13) -> 0 | H14: =IF(OR(H5=0,H6=0,H8=0),0,H13) -> 0 | J14: =IF(OR(J5=0,J6=0,J8=0),0,J13) -> 0 | L14: =IF(OR(L5=0,L6=0,L8=0),0,L13) -> 0
B15: Débit de génération | C15: qvg | F15: =IF(G8="Tru",F5/(1.163*($E$7-F8)),F5/(1.163*($E$7-F14))) ->  | H15: =IF(I8="Tru",H5/(1.163*($E$7-H8)),H5/(1.163*($E$7-H14))) ->  | J15: =IF(K8="Tru",J5/(1.163*($E$7-J8)),J5/(1.163*($E$7-J14))) ->  | L15: =IF(M8="Tru",L5/(1.163*($E$7-L8)),L5/(1.163*($E$7-L14))) -> 
B16: valeur sans div0 | F16: =IF(OR(F5=0,F6=0,F8=0),0,F15) -> 0 | H16: =IF(OR(H5=0,H6=0,H8=0),0,H15) -> 0 | J16: =IF(OR(J5=0,J6=0,J8=0),0,J15) -> 0 | L16: =IF(OR(L5=0,L6=0,L8=0),0,L15) -> 0
B17: Temp retour utilisation | C17: Tru | F17: =IF(G8="qvu",F6-(F5/(F8*1.163)),F8) -> 0 | H17: =IF(I8="qvu",H6-(H5/(H8*1.163)),H8) -> 0 | J17: =IF(K8="qvu",J6-(J5/(J8*1.163)),J8) -> 0 | L17: =IF(M8="qvu",L6-(L5/(L8*1.163)),L8) -> 0
B18: valeur sans div0 | F18: =IF(OR(F5=0,F6=0,F8=0),0,F17) -> 0 | H18: =IF(OR(H5=0,H6=0,H8=0),0,H17) -> 0 | J18: =IF(OR(J5=0,J6=0,J8=0),0,J17) -> 0 | L18: =IF(OR(L5=0,L6=0,L8=0),0,L17) -> 0
B19: rapport Tmax/Td | F19: =$E$7/F6 ->  | H19: =$E$7/H6 ->  | J19: =$E$7/J6 ->  | L19: =$E$7/L6 -> 
B20: vanne ou pas | F20: =IF(F19>1,"mettre une vanne de mélange","") ->  | H20: =IF(H19>1,"mettre une vanne de mélange","") ->  | J20: =IF(J19>1,"mettre une vanne de mélange","") ->  | L20: =IF(L19>1,"mettre une vanne de mélange","") -> 
B22: valeur sans div0 | F22: =IF(OR(F5=0,F6=0,F8=0),"",F20) ->  | H22: =IF(OR(H5=0,H6=0,H8=0),"",H20) ->  | J22: =IF(OR(J5=0,J6=0,J8=0),"",J20) ->  | L22: =IF(OR(L5=0,L6=0,L8=0),"",L20) -> 
B23: Diamètre
B24: Calcul avec vitesse silencieuse:
B25: ='Données-Résultats'!C31 -> Diamètre tube circuit d'utilisation | C25: ='Données-Résultats'!D31 -> Øu | D25: ='Données-Résultats'!E31 -> mm | E25: ='Données-Résultats'!F31 -> = | F25: =IF(G8="Tru",22.9*F12^0.4,22.9*F8^0.4) -> 0 | H25: =IF(I8="Tru",22.9*H12^0.4,22.9*H8^0.4) -> 0 | J25: =IF(K8="Tru",22.9*J12^0.4,22.9*J8^0.4) -> 0 | L25: =IF(M8="Tru",22.9*L12^0.4,22.9*L8^0.4) -> 0 | M25: ='Données-Résultats'!Q31 -> 0 | N25: ='Données-Résultats'!R31 -> 0 | O25: ='Données-Résultats'!S31 -> 0 | P25: ='Données-Résultats'!T31 -> 0
B26: valeur proche | C26: ='Données-Résultats'!D32 -> 0 | D26: ='Données-Résultats'!E32 -> 0 | E26: ='Données-Résultats'!F32 -> 0 | F26: =VLOOKUP(F25,Base!$A$5:$A$31,1,TRUE) -> 0 | H26: =VLOOKUP(H25,Base!$A$5:$A$31,1,TRUE) -> 0 | J26: =VLOOKUP(J25,Base!$A$5:$A$31,1,TRUE) -> 0 | L26: =VLOOKUP(L25,Base!$A$5:$A$31,1,TRUE) -> 0 | M26: ='Données-Résultats'!Q32 -> 0 | N26: ='Données-Résultats'!R32 -> 0 | O26: ='Données-Résultats'!S32 -> 0 | P26: ='Données-Résultats'!T32 -> 0
B27: diam réel | F27: =VLOOKUP(F25,Base!$A$5:$B$30,2,TRUE) -> 13.2 | H27: =VLOOKUP(H25,Base!$A$5:$B$30,2,TRUE) -> 13.2 | J27: =VLOOKUP(J25,Base!$A$5:$B$30,2,TRUE) -> 13.2 | L27: =VLOOKUP(L25,Base!$A$5:$B$30,2,TRUE) -> 13.2
B28: diam réf | F28: =VLOOKUP(F27,Base!$B$5:$C$31,2,TRUE) -> AC - 17.2 * 2 | H28: =VLOOKUP(H27,Base!$B$5:$C$31,2,TRUE) -> AC - 17.2 * 2 | J28: =VLOOKUP(J27,Base!$B$5:$C$31,2,TRUE) -> AC - 17.2 * 2 | L28: =VLOOKUP(L27,Base!$B$5:$C$31,2,TRUE) -> AC - 17.2 * 2
B29: sans div0 | F29: =IF(F25=0,"",F28) ->  | H29: =IF(H25=0,"",H28) ->  | J29: =IF(J25=0,"",J28) ->  | L29: =IF(L25=0,"",L28) -> 
B30: Somme puissances utilisations | D30: kW | E30: =F5+H5+J5+L5 -> 0
B31: sans div0 | E31: =IF(OR(F5=0,F6=0,F8=0),"",E30) -> 
B33: Débit total de génération | D33: m3/h | F33: =F16+H16+J16+L16 -> 0
F34: =IF(OR(F5=0,F6=0,F8=0),0,F33) -> 0
B35: Température de mélange | D35: ='Données-Résultats'!E42 -> °C | E35: ='Données-Résultats'!F42 -> = | F35: =(F16*F18+H16*H18+J16*J18+L16*L18)/(F16+H16+J16+L16) -> 
B36: sans div0 | D36: °C | F36: =IF(OR(F5=0,F6=0,F8=0),0,F35) -> 0
B37: Débit transitant dans bouteille
B38: Coefficient de bypass | F38: 145
B39: Coeff/100 | F39: =IF(F5=0,0,F38/100) -> 0
B40: Débit transitant | F40: =IF(F39=1,"0",F34*(F39-1)) -> 0 | G40: m3/h
B41: ='Données-Résultats'!C41 -> Température départ primaire | C41: Tdp | D41: ='Données-Résultats'!E41 -> °C | E41: ='Données-Résultats'!F41 -> = | F41: =E7 -> 0
B42: ='Données-Résultats'!C42 -> Température retour primaire | C42: Trp | D42: °C | F42: =(F34*F36+F40*E7)/(F34+F40) -> 
B43: sans div0 | F43: =IF(OR(F5=0,F6=0,F8=0),0,F42) -> 0
B44: chute | F44: =F41-F43 -> 0
B45: ='Données-Résultats'!C44 -> Puissance utile de génération | C45: ='Données-Résultats'!D34 -> Pu | D45: ='Données-Résultats'!E34 -> kW | E45: ='Données-Résultats'!F34 -> = | F45: =E31 ->  | H45: =1.163*F49*(F41-F35) -> 
F46: =IF(OR(F5=0,F6=0,F8=0),0,F45) -> 0
B47: Coef surpuissance | F47: ='Données-Résultats'!H45 -> 0
B48: Puissance de génération à installer | F48: =F46*(100+F47)/100 -> 0
B49: ='Données-Résultats'!C47 -> Débit du circuit primaire | C49: ='Données-Résultats'!D47 -> qvp | D49: ='Données-Résultats'!E47 -> m3/h | E49: ='Données-Résultats'!F47 -> = | F49: =F48/(1.163*(F41-F43)) -> 
B50: div0 | F50: =IF(OR(F5=0,F6=0,F8=0),0,F49) -> 0 | H50: =IF(F50<#REF!,"Ajuster la majoration de puissance.","Le débit primaire est bien ajusté.") -> 
B51: Diamètre circuit primaire | C51: Dp | D51: mm | E51: = | F51: =22.9*F49^0.4 -> 
B52: div0 | F52: =IF(OR(F5=0,F6=0,F8=0),0,F51) -> 0
F53: =VLOOKUP(F51,Base!$A$5:$A$31,1,TRUE) -> 
F54: =VLOOKUP(F51,Base!$A$5:$B$30,2,TRUE) -> 
F55: =VLOOKUP(F54,Base!$B$5:$C$31,2,TRUE) -> 
B56: sans div0 | F56: =IF(OR(F5=0,F6=0,F8=0),0,F55) -> 0
B58: Bouteille
B59: Diamètre circuit secondaire | C59: Ds | D59: mm | E59: = | F59: =F25 -> 0 | N59: ='Données-Résultats'!#REF! ->  | O59: ='Données-Résultats'!#REF! ->  | P59: ='Données-Résultats'!#REF! -> 
F60: =VLOOKUP(F59,Base!$A$5:$A$31,1,TRUE) -> 0
F61: =VLOOKUP(F59,Base!$A$5:$B$30,2,TRUE) -> 13.2
F62: =VLOOKUP(F61,Base!$B$5:$C$31,2,TRUE) -> AC - 17.2 * 2
B63: sans div0 | F63: =IF(F59=0,"",F62) -> 
B65: Diametre bouteille | C65: Db | D65: mm | E65: = | F65: =3*F52 -> 0
F66: =VLOOKUP(F65,Base!$A$5:$A$31,1,TRUE) -> 0
F67: =VLOOKUP(F65,Base!$A$5:$B$30,2,TRUE) -> 13.2
F68: =VLOOKUP(F67,Base!$B$5:$C$31,2,TRUE) -> AC - 17.2 * 2
F69: =IF(F65=0,"",F68) -> 
B70: test circuit | F70: =IF(F5>0,1,0) -> 0 | H70: =IF(H5>0,1,0) -> 0 | J70: =IF(J5>0,1,0) -> 0 | L70: =IF(L5>0,1,0) -> 0
B71: Nombre de circuits | F71: =SUM(F70,H70,J70,L70) -> 0
B72: Hauteur de bouteille | F72: =IF(F71=1,13*F52,IF(F71=2,19*F52,IF(F71=3,25*F52,IF(F71=4,31*F52)))) -> FALSE
F73: =ROUND(F72/10,0)*10 -> 0
E74: a | F74: =ROUND(2*F52/10,0)*10 -> 0
E75: b | F75: =ROUND(3*F52/10,0)*10 -> 0
H89: ='Données-Résultats'!#REF! ->  | J89: ='Données-Résultats'!#REF! ->  | L89: ='Données-Résultats'!#REF! ->  | M89: ='Données-Résultats'!#REF! ->  | N89: ='Données-Résultats'!#REF! ->  | O89: ='Données-Résultats'!#REF! ->  | P89: ='Données-Résultats'!#REF! -> 

Sheet Données-Résultats
E3: Dimensionnement d'une bouteille de découplage
R4: Version 04/2020
C7: Références du projet
A14: ? | C14: Données
A16: ? | C16: Utilisation | G16: Circuit A | J16: Circuit B | M16: Circuit C | P16: Circuit D
C18: Désignation | D18: Symbole | E18: Unité
A19: ? | C19: Référence | D19: - | E19: - | F19: :
C20: Puissance nominale d'utilisation | D20: Pu | E20: kW | F20: :
A21: ? | C21: Température de départ nominale | D21: qdu | E21: °C | F21: :
A22: ? | C22: Température de retour d'utilisation | D22: qru | E22: =IF(C24="Débit","m3/h","°C") -> °C | F22: :
C23: ou Débit d'utilisation | D23: qvu | E23: m3/h | G23: =calculs2!F22 ->  | J23: =calculs2!H22 ->  | M23: =calculs2!J22 ->  | P23: =calculs2!L22 -> 
A24: ? | C24: Présence ou non d'une vanne de mélange
C25: Résultats
A28: ? | C28: Débit d'utilisation | D28: qvu | E28: m3/h | F28: = | G28: =calculs2!F12 -> 0 | J28: =calculs2!H12 -> 0 | M28: =calculs2!J12 -> 0 | P28: =calculs2!L12 -> 0
A29: ? | C29: Température de retour d'utilisation | D29: qru | E29: =IF(C29="Débit","m3/h","°C") -> °C | F29: = | G29: =calculs2!F14 -> 0 | J29: =calculs2!H14 -> 0 | M29: =calculs2!J14 -> 0 | P29: =calculs2!L14 -> 0
A30: ? | C30: Débit secondaire | D30: qvs | E30: m3/h | F30: = | G30: =calculs2!F16 -> 0 | J30: =calculs2!H16 -> 0 | M30: =calculs2!J16 -> 0 | P30: =calculs2!L16 -> 0
A31: ? | C31: Diamètre tube circuit d'utilisation | D31: Øu | E31: mm | F31: = | G31: =calculs2!F25 -> 0 | J31: =calculs2!H25 -> 0 | M31: =calculs2!J25 -> 0 | P31: =calculs2!L25 -> 0
G32: =calculs2!F29 ->  | J32: =calculs2!H29 ->  | M32: =calculs2!J29 ->  | P32: =calculs2!L29 -> 
A34: ? | C34: Puissance totale d'utilisation | D34: Pu | E34: kW | F34: = | G34: =calculs2!E31 -> 
A35: ? | C35: Débit total secondaire | D35: Qvs | E35: m3/h | F35: = | G35: =calculs2!F34 -> 0
A37: ? | C37: Température de mélange bouteille | D37: Tm | E37: °C | F37: = | G37: =calculs2!F36 -> 0
A38: ? | C38: Coefficient de bypass de bouteille | D38: Cb | E38: - | F38: : | G38: =calculs2!F39 -> 0
A39: ? | C39: Débit transitant dans la bouteille | D39: qvb | E39: m3/h | F39: = | G39: =calculs2!F40 -> 0
A41: ? | C41: Température départ primaire | D41: qdp | E41: °C | F41: = | G41: =calculs2!F41 -> 0
A42: ? | C42: Température retour primaire | D42: qrp | E42: °C | F42: = | G42: =calculs2!F43 -> 0
A43: ? | C43: Chute de température générateur | D43: Dq | E43: °C | F43: = | G43: =calculs2!F44 -> 0
A44: ? | C44: Puissance utile de génération | D44: Pg | E44: kW | F44: = | G44: =calculs2!F46 -> 0
A45: ? | C45: Coefficient de surpuissance | D45: Cs | E45: %
A46: ? | C46: Puissance de génération à installer | D46: Pg | E46: kW | F46: = | G46: =calculs2!F48 -> 0
A47: ? | C47: Débit du circuit primaire | D47: qvp | E47: m3/h | F47: = | G47: =calculs2!F50 -> 0
A48: ? | C48: Diamètre du circuit primaire | D48: Øp | E48: mm | F48: = | G48: =calculs2!F52 -> 0
G49: =calculs2!F56 -> 0
A55: ? | C55: Bouteille
C56: Diamètre du circuit primaire | D56: Øp | E56: mm | F56: = | G56: =calculs2!F52 -> 0
G57: =calculs2!F56 -> 0
C58: Diamètre des circuits de génération | D58: Øs | E58: mm | F58: = | G58: =calculs2!F25 -> 0 | J58: =calculs2!H25 -> 0 | M58: =calculs2!J25 -> 0 | P58: =calculs2!L25 -> 0
G59: =calculs2!F29 ->  | J59: =calculs2!H29 ->  | M59: =calculs2!J29 ->  | P59: =calculs2!L29 -> 
C60: Diamètre de la bouteille | D60: Øb | E60: mm | F60: = | G60: =calculs2!F65 -> 0
G61: =calculs2!F69 -> 
C64: Hauteur de la bouteille | D64: H | E64: mm | F64: = | G64: =calculs2!F73 -> 0
C65: Cote a | D65: a | E65: mm | F65: = | G65: =calculs2!F74 -> 0
C66: Cote b | D66: b | E66: mm | F66: = | G66: =calculs2!F75 -> 0

Sheet chaudDD (hidden)
G2: base de données chaudières
A4: Pu | B4: ='Données-Résultats'!G46 -> 0
A6: solution | B6: Pmax | C6: Modèle | D6: combustible | E6: Pmin | F6: Pmax | G6: qm fumées | H6: qm fumées | I6: diam sortie ch. | J6: T fumées | K6: % CO2 | L6: n°test | O6: solutions | P6: Modèle | Q6: combustible | R6: Pmin | S6: Pmax | T6: qm fumées | U6: qm fumées | V6: diam sortie ch. | W6: T fumées | X6: % CO2
B7: kW | C7: sans regu | E7: kW | F7: kW | G7: kg/h | H7: kg/s | I7: mm | R7: kW | S7: kW | T7: kg/h | U7: kg/s | V7: mm | AA7: Modèle | AC7: Pmin (kW) | AD7: Pmax (kW)
A8: =L8 -> 1 | B8: 54 | C8: DTG 230-7 | D8: gaz | E8: 27 | F8: 54 | G8: 119 | H8: =G8/3600 -> 0.03305555556 | I8: 180 | L8: =IF($B$4<=F8,1,0) -> 1 | O8: 1 | P8: =VLOOKUP(O8,$A$8:$L$110,3,FALSE) -> DTG 230-7 | Q8: =VLOOKUP(O8,$A$8:$L$110,4,FALSE) -> gaz | R8: =VLOOKUP(O8,$A$8:$L$110,5,FALSE) -> 27 | S8: =VLOOKUP(O8,$A$8:$L$110,6,FALSE) -> 54 | T8: =VLOOKUP(O8,$A$8:$L$110,7,FALSE) -> 119 | U8: =VLOOKUP(O8,$A$8:$L$110,8,FALSE) -> 0.03305555556 | V8: =VLOOKUP(O8,$A$8:$L$110,9,FALSE) -> 180 | W8: =VLOOKUP(O8,$A$8:$L$110,10,FALSE) -> 0 | X8: =VLOOKUP(O8,$A$8:$L$110,11,FALSE) -> 0 | Y8: 1 | AA8: =IF(ISNA(P8)=TRUE,"hors gamme",P8) -> DTG 230-7 | AB8: =IF(ISNA(Q8)=TRUE,"",Q8) -> gaz | AC8: =IF(ISNA(R8)=TRUE,"",R8) -> 27 | AD8: 54
A9: =A8+L9 -> 2 | B9: 63 | C9: DTG 230-8 | D9: gaz | E9: 36 | F9: 63 | G9: 138 | H9: =G9/3600 -> 0.03833333333 | I9: 180 | L9: =IF($B$4<=F9,1,0) -> 1 | O9: 2 | P9: =VLOOKUP(O9,$A$8:$K$110,3,FALSE) -> DTG 230-8 | Q9: =VLOOKUP(O9,$A$8:$K$110,4,FALSE) -> gaz | R9: 36 | S9: 63 | T9: 138 | U9: 0.03833333333 | V9: 180 | W9: 0 | X9: 0 | Y9: 2 | AA9: =IF(ISNA(P9)=TRUE,"hors gamme",P9) -> DTG 230-8 | AB9: =IF(ISNA(Q9)=TRUE,"",Q9) -> gaz | AC9: 36 | AD9: 63
A10: 3 | B10: 70 | C10: DTG 230-9 | D10: gaz | E10: 36 | F10: 72 | G10: 160 | H10: 0.04444444444 | I10: 180 | L10: 1 | O10: 3 | P10: DTG 230-9 | Q10: gaz | R10: 36 | S10: 72 | T10: 160 | U10: 0.04444444444 | V10: 180 | W10: 0 | X10: 0 | Y10: 3 | AA10: DTG 230-9 | AB10: gaz | AC10: 36 | AD10: 72
A11: 4 | B11: 81 | C11: DTG 230-10 | D11: gaz | E11: 45 | F11: 81 | G11: 177 | H11: 0.04916666667 | I11: 200 | L11: 1 | O11: 4 | P11: DTG 230-10 | Q11: gaz | R11: 45 | S11: 81 | T11: 177 | U11: 0.04916666667 | V11: 200 | W11: 0 | X11: 0 | Y11: 4 | AA11: DTG 230-10 | AB11: gaz | AC11: 45 | AD11: 81
A12: 5 | B12: 86 | C12: C 230-85 Eco / C 210-85 Eco | D12: gaz | E12: 8.9 | F12: 86 | G12: 137 | H12: 0.03805555556 | I12: 150 | L12: 1 | O12: 6 | P12: DTG 230-11 | Q12: gaz | R12: 45 | S12: 90 | T12: 197 | U12: 0.05472222222 | V12: 200 | W12: 0 | X12: 0 | Y12: 6 | AA12: DTG 230-11 | AB12: gaz | AC12: 45 | AD12: 90
A13: 6 | B13: 90 | C13: DTG 230-11 | D13: gaz | E13: 45 | F13: 90 | G13: 197 | H13: 0.05472222222 | I13: 200 | L13: 1 | O13: 7 | P13: GT 334 | Q13: fioul | R13: 55 | S13: 90 | T13: 149 | U13: 0.04138888889 | V13: 180 | W13: 195 | X13: 13 | Y13: 7 | AA13: GT 334 | AB13: fioul | AC13: 55 | AD13: 90
A14: 7 | B14: 90 | C14: GT 334 | D14: fioul | E14: 55 | F14: 90 | G14: 149 | H14: 0.04138888889 | I14: 180 | J14: 195 | K14: 13 | L14: 1 | O14: 8 | P14: GT 334 | Q14: gaz | R14: 55 | S14: 90 | T14: 160 | U14: 0.04444444444 | V14: 180 | W14: 195 | X14: 9.5 | Y14: 8 | AA14: GT 334 | AB14: gaz | AC14: 55 | AD14: 90
A15: 8 | B15: 90 | C15: GT 334 | D15: gaz | E15: 55 | F15: 90 | G15: 160 | H15: 0.04444444444 | I15: 180 | J15: 195 | K15: 9.5 | L15: 1 | O15: 9 | P15: DTG 230-12 | Q15: gaz | R15: 54 | S15: 99 | T15: 216 | U15: 0.06 | V15: 200 | W15: 0 | X15: 0 | Y15: 9 | AA15: DTG 230-12 | AB15: gaz | AC15: 54 | AD15: 99
A16: 9 | B16: 99 | C16: DTG 230-12 | D16: gaz | E16: 54 | F16: 99 | G16: 216 | H16: 0.06 | I16: 200 | L16: 1 | O16: 10 | P16: DTG 230-13 | Q16: gaz | R16: 54 | S16: 108 | T16: 235 | U16: 0.06527777778 | V16: 220 | W16: 0 | X16: 0 | Y16: 10 | AA16: DTG 230-13 | AB16: gaz | AC16: 54 | AD16: 108
A17: 10 | B17: 108 | C17: DTG 230-13 | D17: gaz | E17: 54 | F17: 108 | G17: 235 | H17: 0.06527777778 | I17: 220 | L17: 1 | O17: 11 | P17: GT 335 | Q17: fioul | R17: 90 | S17: 115 | T17: 191 | U17: 0.05305555556 | V17: 180 | W17: 190 | X17: 13 | Y17: 11 | AA17: GT 335 | AB17: fioul | AC17: 90 | AD17: 115
A18: 11 | B18: 115 | C18: GT 335 | D18: fioul | E18: 90 | F18: 115 | G18: 191 | H18: 0.05305555556 | I18: 180 | J18: 190 | K18: 13 | L18: 1 | O18: 12 | P18: GT 335 | Q18: gaz | R18: 90 | S18: 115 | T18: 206 | U18: 0.05722222222 | V18: 180 | W18: 190 | X18: 9.5 | Y18: 12 | AA18: GT 335 | AB18: gaz | AC18: 90 | AD18: 115
A19: 12 | B19: 115 | C19: GT 335 | D19: gaz | E19: 90 | F19: 115 | G19: 206 | H19: 0.05722222222 | I19: 180 | J19: 190 | K19: 9.5 | L19: 1 | O19: 13 | P19: DTG 230-14 | Q19: gaz | R19: 54 | S19: 117 | T19: 255 | U19: 0.07083333333 | V19: 220 | W19: 0 | X19: 0 | Y19: 13 | AA19: DTG 230-14 | AB19: gaz | AC19: 54 | AD19: 117
A20: 13 | B20: 117 | C20: DTG 230-14 | D20: gaz | E20: 54 | F20: 117 | G20: 255 | H20: 0.07083333333 | I20: 220 | L20: 1 | O20: 14 | P20: DTG 330-8 Eco | Q20: gaz | R20: 88 | S20: 126 | T20: 313.2 | U20: 0.087 | V20: 250 | W20: 130 | X20: 6.4 | Y20: 14 | AA20: DTG 330-8 Eco | AB20: gaz | AC20: 88 | AD20: 126
A21: 14 | B21: 126 | C21: DTG 330-8 Eco | D21: gaz | E21: 88 | F21: 126 | G21: =H21*3600 -> 313.2 | H21: 0.087 | I21: 250 | J21: 130 | K21: 6.4 | L21: 1 | O21: 16 | P21: DTG 330-8 S | Q21: gaz | R21: 83 | S21: 140 | T21: 352.8 | U21: 0.098 | V21: 250 | W21: 140 | X21: 6.4 | Y21: 16 | AA21: DTG 330-8 S | AB21: gaz | AC21: 83 | AD21: 140
A22: 15 | B22: 129 | C22: C 230-130 Eco / C 210-130 Eco | D22: gaz | E22: 13.5 | F22: 129 | G22: 205 | H22: =G22/3600 -> 0.05694444444 | I22: 150 | L22: 1 | O22: 17 | P22: DTG 330-9 Eco | Q22: gaz | R22: 101 | S22: 144 | T22: 360 | U22: 0.1 | V22: 250 | W22: 130 | X22: 6.4 | Y22: 17 | AA22: DTG 330-9 Eco | AB22: gaz | AC22: 101 | AD22: 144
A23: 16 | B23: 140 | C23: DTG 330-8 S | D23: gaz | E23: 83 | F23: 140 | G23: =H23*3600 -> 352.8 | H23: 0.098 | I23: 250 | J23: 140 | K23: 6.4 | L23: 1 | O23: 18 | P23: GT 336 | Q23: fioul | R23: 115 | S23: 150 | T23: 248 | U23: 0.06888888889 | V23: 180 | W23: 195 | X23: 13 | Y23: 18 | AA23: GT 336 | AB23: fioul | AC23: 115 | AD23: 150
A24: 17 | B24: 144 | C24: DTG 330-9 Eco | D24: gaz | E24: 101 | F24: 144 | G24: =H24*3600 -> 360 | H24: 0.1 | I24: 250 | J24: 130 | K24: 6.4 | L24: 1 | O24: 19 | P24: GT 336 | Q24: gaz | R24: 115 | S24: 150 | T24: 270 | U24: 0.075 | V24: 180 | W24: 195 | X24: 9.5 | Y24: 19 | AA24: GT 336 | AB24: gaz | AC24: 115 | AD24: 150
A25: 18 | B25: 150 | C25: GT 336 | D25: fioul | E25: 115 | F25: 150 | G25: 248 | H25: =G25/3600 -> 0.06888888889 | I25: 180 | J25: 195 | K25: 13 | L25: 1 | O25: 20 | P25: DTG 330-9 S | Q25: gaz | R25: 95 | S25: 160 | T25: 403.2 | U25: 0.112 | V25: 250 | W25: 140 | X25: 6.4 | Y25: 20 | AA25: DTG 330-9 S | AB25: gaz | AC25: 95 | AD25: 160
A26: 19 | B26: 150 | C26: GT 336 | D26: gaz | E26: 115 | F26: 150 | G26: 270 | H26: =G26/3600 -> 0.075 | I26: 180 | J26: 195 | K26: 9.5 | L26: 1 | O26: 21 | P26: DTG 330-10 Eco | Q26: gaz | R26: 113 | S26: 162 | T26: 410.4 | U26: 0.114 | V26: 300 | W26: 125 | X26: 6.3 | Y26: 21 | AA26: =IF(ISNA(P26)=TRUE,"hors gamme",P26) -> DTG 330-10 Eco | AB26: gaz | AC26: 113 | AD26: 162
A27: 20 | B27: 160 | C27: DTG 330-9 S | D27: gaz | E27: 95 | F27: 160 | G27: =H27*3600 -> 403.2 | H27: 0.112 | I27: 250 | J27: 140 | K27: 6.4 | L27: 1 | O27: 22 | P27: C 230-170 Eco / C 210-170 Eco | Q27: gaz | R27: 18.1 | S27: 171 | T27: 274 | U27: 0.07611111111 | V27: 150 | W27: 0 | X27: 0 | Y27: 22 | AA27: C 230-170 Eco / C 210-170 Eco | AB27: gaz | AC27: 18.1 | AD27: 171
A28: 21 | B28: 162 | C28: DTG 330-10 Eco | D28: gaz | E28: 113 | F28: 162 | G28: =H28*3600 -> 410.4 | H28: 0.114 | I28: 300 | J28: 125 | K28: 6.3 | L28: 1 | O28: 23 | P28: DTG 330-10 S | Q28: gaz | R28: 107 | S28: 180 | T28: 460.8 | U28: 0.128 | V28: 300 | W28: 130 | X28: 6.6 | Y28: 23 | AA28: DTG 330-10 S | AB28: gaz | AC28: 107 | AD28: 180
A29: 22 | B29: 171 | C29: C 230-170 Eco / C 210-170 Eco | D29: gaz | E29: 18.1 | F29: 171 | G29: 274 | H29: 0.07611111111 | I29: 150 | L29: 1 | O29: 24 | P29: DTG 330-11 Eco | Q29: gaz | R29: 126 | S29: 180 | T29: 446.4 | U29: 0.124 | V29: 300 | W29: 125 | X29: 6.4 | Y29: 24 | AA29: DTG 330-11 Eco | AB29: gaz | AC29: 126 | AD29: 180
A30: 23 | B30: 180 | C30: DTG 330-10 S | D30: gaz | E30: 107 | F30: 180 | G30: =H30*3600 -> 460.8 | H30: 0.128 | I30: 300 | J30: 130 | K30: 6.6 | L30: 1 | O30: 25 | P30: GT 337 | Q30: fioul | R30: 150 | S30: 185 | T30: 306 | U30: 0.085 | V30: 200 | W30: 195 | X30: 13 | Y30: 25 | AA30: GT 337 | AB30: fioul | AC30: 150 | AD30: 185
A31: 24 | B31: 180 | C31: DTG 330-11 Eco | D31: gaz | E31: 126 | F31: 180 | G31: =H31*3600 -> 446.4 | H31: 0.124 | I31: 300 | J31: 125 | K31: 6.4 | L31: 1 | O31: 26 | P31: GT 337 | Q31: gaz | R31: 150 | S31: 185 | T31: 331 | U31: 0.09194444444 | V31: 200 | W31: 195 | X31: 9.5 | Y31: 26 | AA31: GT 337 | AB31: gaz | AC31: 150 | AD31: 185
A32: 25 | B32: 185 | C32: GT 337 | D32: fioul | E32: 150 | F32: 185 | G32: 306 | H32: =G32/3600 -> 0.085 | I32: 200 | J32: 195 | K32: 13 | L32: 1 | O32: 27 | P32: DTG 330-12 Eco | Q32: gaz | R32: 139 | S32: 198 | T32: 464.4 | U32: 0.129 | V32: 300 | W32: 130 | X32: 6.8 | Y32: 27 | AA32: DTG 330-12 Eco | AB32: gaz | AC32: 139 | AD32: 198
A33: 26 | B33: 185 | C33: GT 337 | D33: gaz | E33: 150 | F33: 185 | G33: 331 | H33: =G33/3600 -> 0.09194444444 | I33: 200 | J33: 195 | K33: 9.5 | L33: 1 | O33: 28 | P33: DTG 330-11 S | Q33: gaz | R33: 119 | S33: 200 | T33: 507.6 | U33: 0.141 | V33: 300 | W33: 130 | X33: 6.4 | Y33: 28 | AA33: DTG 330-11 S | AB33: gaz | AC33: 119 | AD33: 200
A34: 27 | B34: 198 | C34: DTG 330-12 Eco | D34: gaz | E34: 139 | F34: 198 | G34: =H34*3600 -> 464.4 | H34: 0.129 | I34: 300 | J34: 130 | K34: 6.8 | L34: 1 | O34: 29 | P34: C 230-210 Eco / C 210-210 Eco | Q34: gaz | R34: 22.7 | S34: 214 | T34: 343 | U34: 0.09527777778 | V34: 150 | W34: 0 | X34: 0 | Y34: 29 | AA34: C 230-210 Eco / C 210-210 Eco | AB34: gaz | AC34: 22.7 | AD34: 214
A35: 28 | B35: 200 | C35: DTG 330-11 S | D35: gaz | E35: 119 | F35: 200 | G35: =H35*3600 -> 507.6 | H35: 0.141 | I35: 300 | J35: 130 | K35: 6.4 | L35: 1 | O35: 30 | P35: DTG 330-12 S | Q35: gaz | R35: 131 | S35: 220 | T35: 558 | U35: 0.155 | V35: 300 | W35: 135 | X35: 6.4 | Y35: 30 | AA35: DTG 330-12 S | AB35: gaz | AC35: 131 | AD35: 220
A36: 29 | B36: 214 | C36: C 230-210 Eco / C 210-210 Eco | D36: gaz | E36: 22.7 | F36: 214 | G36: 343 | H36: =G36/3600 -> 0.09527777778 | I36: 150 | L36: 1 | O36: 31 | P36: GT 338 | Q36: fioul | R36: 185 | S36: 230 | T36: 381 | U36: 0.1058333333 | V36: 200 | W36: 185 | X36: 13 | Y36: 31 | AA36: GT 338 | AB36: =IF(ISNA(Q36)=TRUE,"",Q36) -> fioul | AC36: 185 | AD36: 230
A37: 30 | B37: 220 | C37: DTG 330-12 S | D37: gaz | E37: 131 | F37: 220 | G37: =H37*3600 -> 558 | H37: 0.155 | I37: 300 | J37: 135 | K37: 6.4 | L37: 1 | O37: 32 | P37: GT 338 | Q37: gaz | R37: 185 | S37: 230 | T37: 411 | U37: 0.1141666667 | V37: 200 | W37: 185 | X37: 9.5 | Y37: 32 | AA37: GT 338 | AB37: gaz | AC37: 185 | AD37: 230
A38: 31 | B38: 230 | C38: GT 338 | D38: fioul | E38: 185 | F38: 230 | G38: 381 | H38: =G38/3600 -> 0.1058333333 | I38: 200 | J38: 185 | K38: 13 | L38: 1 | O38: 33 | P38: DTG 330-14 Eco | Q38: gaz | R38: 164 | S38: 234 | T38: 572.4 | U38: 0.159 | V38: 350 | W38: 125 | X38: 6.5 | Y38: 33 | AA38: DTG 330-14 Eco | AB38: gaz | AC38: 164 | AD38: 234
A39: 32 | B39: 230 | C39: GT 338 | D39: gaz | E39: 185 | F39: 230 | G39: 411 | H39: =G39/3600 -> 0.1141666667 | I39: 200 | J39: 185 | K39: 9.5 | L39: 1 | O39: 34 | P39: DTG 330-14 S | Q39: gaz | R39: 155 | S39: 260 | T39: 608.4 | U39: 0.169 | V39: 350 | W39: 130 | X39: 7 | Y39: 34 | AA39: DTG 330-14 S | AB39: gaz | AC39: 155 | AD39: 260
A40: 33 | B40: 234 | C40: DTG 330-14 Eco | D40: gaz | E40: 164 | F40: 234 | G40: =H40*3600 -> 572.4 | H40: 0.159 | I40: 350 | J40: 125 | K40: 6.5 | L40: 1 | O40: 35 | P40: DTG 330-16 Eco | Q40: gaz | R40: =VLOOKUP(O40,$A$8:$L$110,5,FALSE) -> 189 | S40: =VLOOKUP(O40,$A$8:$L$110,6,FALSE) -> 270 | T40: =VLOOKUP(O40,$A$8:$L$110,7,FALSE) -> 615.6 | U40: =VLOOKUP(O40,$A$8:$L$110,8,FALSE) -> 0.171 | V40: =VLOOKUP(O40,$A$8:$L$110,9,FALSE) -> 350 | W40: =VLOOKUP(O40,$A$8:$L$110,10,FALSE) -> 130 | X40: =VLOOKUP(O40,$A$8:$L$110,11,FALSE) -> 7 | Y40: 35 | AA40: DTG 330-16 Eco | AB40: gaz | AC40: 189 | AD40: 270
A41: 34 | B41: 260 | C41: DTG 330-14 S | D41: gaz | E41: 155 | F41: 260 | G41: =H41*3600 -> 608.4 | H41: 0.169 | I41: 350 | J41: 130 | K41: 7 | L41: 1 | O41: 36 | P41: =VLOOKUP(O41,$A$8:$K$110,3,FALSE) -> GT 339 | Q41: =VLOOKUP(O41,$A$8:$K$110,4,FALSE) -> fioul | R41: 230 | S41: 280 | T41: 463 | U41: 0.1286111111 | V41: 200 | W41: 195 | X41: 13 | Y41: 36 | AA41: GT 339 | AB41: fioul | AC41: 230 | AD41: 280
A42: 35 | B42: 270 | C42: DTG 330-16 Eco | D42: gaz | E42: 189 | F42: 270 | G42: =H42*3600 -> 615.6 | H42: 0.171 | I42: 350 | J42: 130 | K42: 7 | L42: 1 | O42: 37 | P42: GT 339 | Q42: gaz | R42: 230 | S42: 280 | T42: 500 | U42: 0.1388888889 | V42: 200 | W42: 195 | X42: 9.5 | Y42: 37 | AA42: GT 339 | AB42: gaz | AC42: 230 | AD42: 280
A43: 36 | B43: 280 | C43: GT 339 | D43: fioul | E43: 230 | F43: 280 | G43: 463 | H43: =G43/3600 -> 0.1286111111 | I43: 200 | J43: 195 | K43: 13 | L43: 1 | O43: 38 | P43: C 310-280 Eco | Q43: gaz | R43: 56 | S43: 282 | T43: 453 | U43: 0.1258333333 | V43: 250 | W43: 0 | X43: 0 | Y43: 38 | AA43: C 310-280 Eco | AB43: gaz | AC43: 56 | AD43: 282
A44: 37 | B44: 280 | C44: GT 339 | D44: gaz | E44: 230 | F44: 280 | G44: 500 | H44: =G44/3600 -> 0.1388888889 | I44: 200 | J44: 195 | K44: 9.5 | L44: 1 | O44: 39 | P44: DTG 330-16 S | Q44: gaz | R44: 179 | S44: 300 | T44: 640.8 | U44: 0.178 | V44: 350 | W44: 135 | X44: 7.7 | Y44: 39 | AA44: DTG 330-16 S | AB44: gaz | AC44: 179 | AD44: 300
A45: 38 | B45: 282 | C45: C 310-280 Eco | D45: gaz | E45: 56 | F45: 282 | G45: 453 | H45: =G45/3600 -> 0.1258333333 | I45: 250 | L45: 1 | O45: 40 | P45: DTG 330-18 Eco | Q45: gaz | R45: 214 | S45: 306 | T45: 655.2 | U45: 0.182 | V45: 350 | W45: 135 | X45: 7.5 | Y45: 40 | AA45: DTG 330-18 Eco | AB45: gaz | AC45: 214 | AD45: 306
A46: 39 | B46: 300 | C46: DTG 330-16 S | D46: gaz | E46: 179 | F46: 300 | G46: =H46*3600 -> 640.8 | H46: 0.178 | I46: 350 | J46: 135 | K46: 7.7 | L46: 1 | O46: 42 | P46: GT 430-8 | Q46: gaz | R46: 250 | S46: 310 | T46: 568 | U46: 0.1577777778 | V46: 250 | W46: 200 | X46: 9 | Y46: 42 | AA46: GT 430-8 | AB46: gaz | AC46: 250 | AD46: 310
A47: 40 | B47: 306 | C47: DTG 330-18 Eco | D47: gaz | E47: 214 | F47: 306 | G47: =H47*3600 -> 655.2 | H47: 0.182 | I47: 350 | J47: 135 | K47: 7.5 | L47: 1 | O47: 43 | P47: DTG 330-18 S | Q47: gaz | R47: 202 | S47: 340 | T47: 727.2 | U47: 0.202 | V47: 350 | W47: 140 | X47: 7.7 | Y47: 43 | AA47: DTG 330-18 S | AB47: gaz | AC47: 202 | AD47: 340
A48: 41 | B48: 310 | C48: GT 430-8 | D48: fioul | E48: 250 | F48: 310 | G48: 516 | H48: =G48/3600 -> 0.1433333333 | I48: 250 | J48: 200 | K48: 13 | L48: 1 | O48: 44 | P48: DTG 330-20 Eco | Q48: gaz | R48: 239 | S48: 342 | T48: 705.6 | U48: 0.196 | V48: 400 | W48: 135 | X48: 7.8 | Y48: 44 | AA48: DTG 330-20 Eco | AB48: gaz | AC48: 239 | AD48: 342
A49: 42 | B49: 310 | C49: GT 430-8 | D49: gaz | E49: 250 | F49: 310 | G49: 568 | H49: =G49/3600 -> 0.1577777778 | I49: 250 | J49: 200 | K49: 9 | L49: 1 | O49: 45 | P49: C 310-350 Eco | Q49: gaz | R49: 71 | S49: 535 | T49: 565 | U49: 0.1569444444 | V49: 250 | W49: 0 | X49: 0 | Y49: 45 | AA49: C 310-350 Eco | AB49: gaz | AC49: 71 | AD49: 535
A50: 43 | B50: 340 | C50: DTG 330-18 S | D50: gaz | E50: 202 | F50: 340 | G50: =H50*3600 -> 727.2 | H50: 0.202 | I50: 350 | J50: 140 | K50: 7.7 | L50: 1 | O50: 46 | P50: GT 430-9 | Q50: fioul | R50: 310 | S50: 370 | T50: 615 | U50: 0.1708333333 | V50: 250 | W50: 200 | X50: 13 | Y50: 46 | AA50: GT 430-9 | AB50: fioul | AC50: 310 | AD50: 370
A51: 44 | B51: 342 | C51: DTG 330-20 Eco | D51: gaz | E51: 239 | F51: 342 | G51: =H51*3600 -> 705.6 | H51: 0.196 | I51: 400 | J51: 135 | K51: 7.8 | L51: 1 | O51: 47 | P51: GT 430-9 | Q51: gaz | R51: 310 | S51: 370 | T51: 677 | U51: 0.1880555556 | V51: 250 | W51: 200 | X51: 9 | Y51: 47 | AA51: GT 430-9 | AB51: gaz | AC51: 310 | AD51: 370
A52: 45 | B52: 353 | C52: C 310-350 Eco | D52: gaz | E52: 71 | F52: 535 | G52: 565 | H52: =G52/3600 -> 0.1569444444 | I52: 250 | L52: 1 | O52: 48 | P52: DTG 330-20 S | Q52: gaz | R52: 226 | S52: 380 | T52: 802.8 | U52: 0.223 | V52: 400 | W52: 140 | X52: 7.8 | Y52: 48 | AA52: DTG 330-20 S | AB52: gaz | AC52: 226 | AD52: 380
A53: 46 | B53: 370 | C53: GT 430-9 | D53: fioul | E53: 310 | F53: 370 | G53: 615 | H53: =G53/3600 -> 0.1708333333 | I53: 250 | J53: 200 | K53: 13 | L53: 1 | O53: 49 | P53: GT 530-7 | Q53: fioul | R53: 348 | S53: 406 | T53: 705 | U53: 0.1958333333 | V53: 300 | W53: 210 | X53: 0 | Y53: 49 | AA53: GT 530-7 | AB53: fioul | AC53: 348 | AD53: 406
A54: 47 | B54: 370 | C54: GT 430-9 | D54: gaz | E54: 310 | F54: 370 | G54: 677 | H54: =G54/3600 -> 0.1880555556 | I54: 250 | J54: 200 | K54: 9 | L54: 1 | O54: 50 | P54: GT 530-7 | Q54: gaz | R54: 348 | S54: 406 | T54: 705 | U54: 0.1958333333 | V54: 300 | W54: 210 | X54: 0 | Y54: 50 | AA54: GT 530-7 | AB54: gaz | AC54: 348 | AD54: 406
A55: 48 | B55: 380 | C55: DTG 330-20 S | D55: gaz | E55: 226 | F55: 380 | G55: =H55*3600 -> 802.8 | H55: 0.223 | I55: 400 | J55: 140 | K55: 7.8 | L55: 1 | O55: 51 | P55: C 310-430 Eco | Q55: gaz | R55: 84 | S55: 427 | T55: 680 | U55: 0.1888888889 | V55: 250 | W55: 0 | X55: 0 | Y55: 51 | AA55: C 310-430 Eco | AB55: gaz | AC55: 84 | AD55: 427
A56: 49 | B56: 406 | C56: GT 530-7 | D56: fioul | E56: 348 | F56: 406 | G56: 705 | H56: =G56/3600 -> 0.1958333333 | I56: 300 | J56: 210 | L56: 1 | O56: 52 | P56: GT 430-10 | Q56: fioul | R56: 370 | S56: 430 | T56: 716 | U56: 0.1988888889 | V56: 250 | W56: 200 | X56: 13 | Y56: 52 | AA56: GT 430-10 | AB56: fioul | AC56: 370 | AD56: 430
A57: 50 | B57: 406 | C57: GT 530-7 | D57: gaz | E57: 348 | F57: 406 | G57: 705 | H57: 0.1958333333 | I57: 300 | J57: 210 | L57: 1 | O57: 53 | P57: GT 430-10 | Q57: gaz | R57: 370 | S57: 430 | T57: 789 | U57: 0.2191666667 | V57: 250 | W57: 200 | X57: 9 | Y57: 53 | AA57: GT 430-10 | AB57: gaz | AC57: 370 | AD57: 430
A58: 51 | B58: 427 | C58: C 310-430 Eco | D58: gaz | E58: 84 | F58: 427 | G58: 680 | H58: 0.1888888889 | I58: 250 | L58: 1 | O58: 54 | P58: GT 530-8 | Q58: fioul | R58: 406 | S58: 464 | T58: 805 | U58: 0.2236111111 | V58: 300 | W58: 210 | X58: 0 | Y58: 54 | AA58: GT 530-8 | AB58: fioul | AC58: 406 | AD58: 464
A59: 52 | B59: 430 | C59: GT 430-10 | D59: fioul | E59: 370 | F59: 430 | G59: 716 | H59: 0.1988888889 | I59: 250 | J59: 200 | K59: 13 | L59: 1 | O59: 55 | P59: GT 530-8 | Q59: gaz | R59: 406 | S59: 464 | T59: 805 | U59: 0.2236111111 | V59: 300 | W59: 210 | X59: 0 | Y59: 55 | AA59: GT 530-8 | AB59: gaz | AC59: 406 | AD59: 464
A60: 53 | B60: 430 | C60: GT 430-10 | D60: gaz | E60: 370 | F60: 430 | G60: 789 | H60: 0.2191666667 | I60: 250 | J60: 200 | K60: 9 | L60: 1 | O60: 56 | P60: GT 430-11 | Q60: fioul | R60: 430 | S60: 495 | T60: 823 | U60: 0.2286111111 | V60: 300 | W60: 200 | X60: 13 | Y60: 56 | AA60: =IF(ISNA(P60)=TRUE,"hors gamme",P60) -> GT 430-11 | AB60: fioul | AC60: 430 | AD60: 495
A61: 54 | B61: 464 | C61: GT 530-8 | D61: fioul | E61: 406 | F61: 464 | G61: 805 | H61: 0.2236111111 | I61: 300 | J61: 210 | L61: 1 | O61: 57 | P61: GT 430-11 | Q61: gaz | R61: 430 | S61: 495 | T61: 906 | U61: 0.2516666667 | V61: 300 | W61: 200 | X61: 9 | Y61: 57 | AA61: GT 430-11 | AB61: gaz | AC61: 430 | AD61: 495
A62: 55 | B62: 464 | C62: GT 530-8 | D62: gaz | E62: 406 | F62: 464 | G62: 805 | H62: 0.2236111111 | I62: 300 | J62: 210 | L62: 1 | O62: 58 | P62: C 310-500 Eco | Q62: gaz | R62: 98 | S62: 499 | T62: 793 | U62: 0.2202777778 | V62: 250 | W62: 0 | X62: 0 | Y62: 58 | AA62: C 310-500 Eco | AB62: gaz | AC62: 98 | AD62: 499
A63: 56 | B63: 495 | C63: GT 430-11 | D63: fioul | E63: 430 | F63: 495 | G63: 823 | H63: 0.2286111111 | I63: 300 | J63: 200 | K63: 13 | L63: 1 | O63: 59 | P63: GT 530-9 | Q63: fioul | R63: 464 | S63: 522 | T63: 895 | U63: 0.2486111111 | V63: 300 | W63: 208 | X63: 0 | Y63: 59 | AA63: GT 530-9 | AB63: fioul | AC63: 464 | AD63: 522
A64: 57 | B64: 495 | C64: GT 430-11 | D64: gaz | E64: 430 | F64: 495 | G64: 906 | H64: 0.2516666667 | I64: 300 | J64: 200 | K64: 9 | L64: 1 | O64: 60 | P64: GT 530-9 | Q64: gaz | R64: 464 | S64: 522 | T64: 895 | U64: 0.2486111111 | V64: 300 | W64: 208 | X64: 0 | Y64: 60 | AA64: GT 530-9 | AB64: gaz | AC64: 464 | AD64: 522
A65: 58 | B65: 499 | C65: C 310-500 Eco | D65: gaz | E65: 98 | F65: 499 | G65: 793 | H65: 0.2202777778 | I65: 250 | L65: 1 | O65: 61 | P65: GT 430-12 | Q65: fioul | R65: 495 | S65: 570 | T65: 947 | U65: 0.2630555556 | V65: 300 | W65: 200 | X65: 13 | Y65: 61 | AA65: GT 430-12 | AB65: fioul | AC65: 495 | AD65: 570
A66: 59 | B66: 522 | C66: GT 530-9 | D66: fioul | E66: 464 | F66: 522 | G66: 895 | H66: 0.2486111111 | I66: 300 | J66: 208 | L66: 1 | O66: 62 | P66: GT 430-12 | Q66: gaz | R66: 495 | S66: 570 | T66: 1043 | U66: 0.2897222222 | V66: 300 | W66: 200 | X66: 9 | Y66: 62 | AA66: GT 430-12 | AB66: gaz | AC66: 495 | AD66: 570
A67: 60 | B67: 522 | C67: GT 530-9 | D67: gaz | E67: 464 | F67: 522 | G67: 895 | H67: 0.2486111111 | I67: 300 | J67: 208 | L67: 1 | O67: 63 | P67: C 310-570 Eco | Q67: gaz | R67: 113 | S67: 573 | T67: 907 | U67: 0.2519444444 | V67: 250 | W67: 0 | X67: 0 | Y67: 63 | AA67: C 310-570 Eco | AB67: gaz | AC67: 113 | AD67: 573
A68: 61 | B68: 570 | C68: GT 430-12 | D68: fioul | E68: 495 | F68: 570 | G68: 947 | H68: 0.2630555556 | I68: 300 | J68: 200 | K68: 13 | L68: 1 | O68: 64 | P68: GT 530-10 | Q68: fioul | R68: 522 | S68: 580 | T68: 990 | U68: 0.275 | V68: 350 | W68: 207 | X68: 0 | Y68: 64 | AA68: GT 530-10 | AB68: fioul | AC68: 522 | AD68: 580
A69: 62 | B69: 570 | C69: GT 430-12 | D69: gaz | E69: 495 | F69: 570 | G69: 1043 | H69: 0.2897222222 | I69: 300 | J69: 200 | K69: 9 | L69: 1 | O69: 65 | P69: GT 530-10 | Q69: gaz | R69: 522 | S69: 580 | T69: 990 | U69: 0.275 | V69: 350 | W69: 207 | X69: 0 | Y69: 65 | AA69: GT 530-10 | AB69: gaz | AC69: 522 | AD69: 580
A70: =A69+L70 -> 63 | B70: 573 | C70: C 310-570 Eco | D70: gaz | E70: 113 | F70: 573 | G70: 907 | H70: 0.2519444444 | I70: 250 | L70: =IF($B$4<=F70,1,0) -> 1 | O70: 66 | P70: GT 530-11 | Q70: fioul | R70: 580 | S70: 638 | T70: 1080 | U70: 0.3 | V70: 350 | W70: 206 | X70: 0 | Y70: 66 | AA70: =IF(ISNA(P70)=TRUE,"hors gamme",P70) -> GT 530-11 | AB70: fioul | AC70: 580 | AD70: 638
A71: 64 | B71: 580 | C71: GT 530-10 | D71: fioul | E71: 522 | F71: 580 | G71: 990 | H71: 0.275 | I71: 350 | J71: 207 | L71: 1 | O71: 67 | P71: GT 530-11 | Q71: gaz | R71: 580 | S71: 638 | T71: 1080 | U71: 0.3 | V71: 350 | W71: 206 | X71: 0 | Y71: 67 | AA71: =IF(ISNA(P71)=TRUE,"hors gamme",P71) -> GT 530-11 | AB71: gaz | AC71: 580 | AD71: 638
A72: 65 | B72: 580 | C72: GT 530-10 | D72: gaz | E72: 522 | F72: 580 | G72: 990 | H72: 0.275 | I72: 350 | J72: 207 | L72: 1 | O72: 68 | P72: GT 430-13 | Q72: fioul | R72: =VLOOKUP(O72,$A$8:$L$110,5,FALSE) -> 570 | S72: =VLOOKUP(O72,$A$8:$L$110,6,FALSE) -> 645 | T72: =VLOOKUP(O72,$A$8:$L$110,7,FALSE) -> 1071 | U72: =VLOOKUP(O72,$A$8:$L$110,8,FALSE) -> 0.2975 | V72: =VLOOKUP(O72,$A$8:$L$110,9,FALSE) -> 300 | W72: =VLOOKUP(O72,$A$8:$L$110,10,FALSE) -> 200 | X72: =VLOOKUP(O72,$A$8:$L$110,11,FALSE) -> 13 | Y72: 68 | AA72: =IF(ISNA(P72)=TRUE,"hors gamme",P72) -> GT 430-13 | AB72: fioul | AC72: 570 | AD72: 645
A73: 66 | B73: 638 | C73: GT 530-11 | D73: fioul | E73: 580 | F73: 638 | G73: 1080 | H73: 0.3 | I73: 350 | J73: 206 | L73: 1 | O73: 69 | P73: =VLOOKUP(O73,$A$8:$K$110,3,FALSE) -> GT 430-13 | Q73: =VLOOKUP(O73,$A$8:$K$110,4,FALSE) -> gaz | R73: 570 | S73: 645 | T73: 1180 | U73: 0.3277777778 | V73: 300 | W73: 200 | X73: 9 | Y73: 69 | AA73: =IF(ISNA(P73)=TRUE,"hors gamme",P73) -> GT 430-13 | AB73: gaz | AC73: 570 | AD73: 645
A74: 67 | B74: 638 | C74: GT 530-11 | D74: gaz | E74: 580 | F74: 638 | G74: 1080 | H74: 0.3 | I74: 350 | J74: 206 | L74: 1 | O74: 70 | P74: GT 530-12 | Q74: fioul | R74: 638 | S74: 696 | T74: 1175 | U74: 0.3263888889 | V74: 350 | W74: 205 | X74: 0 | Y74: 70 | AA74: =IF(ISNA(P74)=TRUE,"hors gamme",P74) -> GT 530-12 | AB74: fioul | AC74: 638 | AD74: 696
A75: 68 | B75: 645 | C75: GT 430-13 | D75: fioul | E75: 570 | F75: 645 | G75: 1071 | H75: 0.2975 | I75: 300 | J75: 200 | K75: 13 | L75: 1 | O75: 71 | P75: GT 530-12 | Q75: gaz | R75: 638 | S75: 696 | T75: 1175 | U75: 0.3263888889 | V75: 350 | W75: 205 | X75: 0 | Y75: 71 | AA75: GT 530-12 | AB75: gaz | AC75: 638 | AD75: 696
A76: 69 | B76: 645 | C76: GT 430-13 | D76: gaz | E76: 570 | F76: 645 | G76: 1180 | H76: 0.3277777778 | I76: 300 | J76: 200 | K76: 9 | L76: 1 | O76: 72 | P76: GT 430-14 | Q76: fioul | R76: 645 | S76: 700 | T76: 1163 | U76: 0.3230555556 | V76: 300 | W76: 200 | X76: 13 | Y76: 72 | AA76: GT 430-14 | AB76: fioul | AC76: 645 | AD76: 700
A77: 70 | B77: 696 | C77: GT 530-12 | D77: fioul | E77: 638 | F77: 696 | G77: 1175 | H77: 0.3263888889 | I77: 350 | J77: 205 | L77: 1 | O77: 73 | P77: GT 430-14 | Q77: gaz | R77: 645 | S77: 700 | T77: 1280 | U77: 0.3555555556 | V77: 300 | W77: 200 | X77: 9 | Y77: 73 | AA77: GT 430-14 | AB77: gaz | AC77: 645 | AD77: 700
A78: 71 | B78: 696 | C78: GT 530-12 | D78: gaz | E78: 638 | F78: 696 | G78: 1175 | H78: 0.3263888889 | I78: 350 | J78: 205 | L78: 1 | O78: 74 | P78: C 610-700 Eco | Q78: gaz | R78: 94 | S78: 706 | T78: 1130 | U78: 0.3138888889 | V78: 350 | W78: 0 | X78: 0 | Y78: 74 | AA78: C 610-700 Eco | AB78: gaz | AC78: 94 | AD78: 706
A79: 72 | B79: 700 | C79: GT 430-14 | D79: fioul | E79: 645 | F79: 700 | G79: 1163 | H79: 0.3230555556 | I79: 300 | J79: 200 | K79: 13 | L79: 1 | O79: 75 | P79: GT 530-13 | Q79: fioul | R79: 696 | S79: 754 | T79: 1275 | U79: 0.3541666667 | V79: 350 | W79: 204 | X79: 0 | Y79: 75 | AA79: GT 530-13 | AB79: fioul | AC79: 696 | AD79: 754
A80: 73 | B80: 700 | C80: GT 430-14 | D80: gaz | E80: 645 | F80: 700 | G80: 1280 | H80: 0.3555555556 | I80: 300 | J80: 200 | K80: 9 | L80: 1 | O80: 76 | P80: GT 530-13 | Q80: gaz | R80: 696 | S80: 754 | T80: 1275 | U80: 0.3541666667 | V80: 350 | W80: 204 | X80: 0 | Y80: 76 | AA80: GT 530-13 | AB80: gaz | AC80: 696 | AD80: 754
A81: 74 | B81: 706 | C81: C 610-700 Eco | D81: gaz | E81: 94 | F81: 706 | G81: 1130 | H81: 0.3138888889 | I81: 350 | L81: 1 | O81: 77 | P81: GT 530-14 | Q81: fioul | R81: 754 | S81: 812 | T81: 1370 | U81: 0.3805555556 | V81: 400 | W81: 203 | X81: 0 | Y81: 77 | AA81: GT 530-14 | AB81: fioul | AC81: 754 | AD81: 812
A82: 75 | B82: 754 | C82: GT 530-13 | D82: fioul | E82: 696 | F82: 754 | G82: 1275 | H82: 0.3541666667 | I82: 350 | J82: 204 | L82: 1 | O82: 78 | P82: GT 530-14 | Q82: gaz | R82: 754 | S82: 812 | T82: 1370 | U82: 0.3805555556 | V82: 400 | W82: 203 | X82: 0 | Y82: 78 | AA82: GT 530-14 | AB82: gaz | AC82: 754 | AD82: 812
A83: 76 | B83: 754 | C83: GT 530-13 | D83: gaz | E83: 696 | F83: 754 | G83: 1275 | H83: 0.3541666667 | I83: 350 | J83: 204 | L83: 1 | O83: 79 | P83: C 610-860 Eco | Q83: gaz | R83: 131 | S83: 854 | T83: 1360 | U83: 0.3777777778 | V83: 350 | W83: 0 | X83: 0 | Y83: 79 | AA83: C 610-860 Eco | AB83: gaz | AC83: 131 | AD83: 854
A84: 77 | B84: 812 | C84: GT 530-14 | D84: fioul | E84: 754 | F84: 812 | G84: 1370 | H84: 0.3805555556 | I84: 400 | J84: 203 | L84: 1 | O84: 80 | P84: GT 530-15 | Q84: fioul | R84: 812 | S84: 870 | T84: 1465 | U84: 0.4069444444 | V84: 400 | W84: 202 | X84: 0 | Y84: 80 | AA84: GT 530-15 | AB84: fioul | AC84: 812 | AD84: 870
A85: 78 | B85: 812 | C85: GT 530-14 | D85: gaz | E85: 754 | F85: 812 | G85: 1370 | H85: 0.3805555556 | I85: 400 | J85: 203 | L85: 1 | O85: 81 | P85: GT 530-15 | Q85: gaz | R85: 812 | S85: 870 | T85: 1465 | U85: 0.4069444444 | V85: 400 | W85: 202 | X85: 0 | Y85: 81 | AA85: GT 530-15 | AB85: gaz | AC85: 812 | AD85: 870
A86: 79 | B86: 854 | C86: C 610-860 Eco | D86: gaz | E86: 131 | F86: 854 | G86: 1360 | H86: 0.3777777778 | I86: 350 | L86: 1 | O86: 82 | P86: GT 530-16 | Q86: fioul | R86: 870 | S86: 928 | T86: 1560 | U86: 0.4333333333 | V86: 400 | W86: 202 | X86: 0 | Y86: 82 | AA86: GT 530-16 | AB86: fioul | AC86: 870 | AD86: 928
A87: 80 | B87: 870 | C87: GT 530-15 | D87: fioul | E87: 812 | F87: 870 | G87: 1465 | H87: 0.4069444444 | I87: 400 | J87: 202 | L87: 1 | O87: 83 | P87: GT 530-16 | Q87: gaz | R87: 870 | S87: 928 | T87: 1560 | U87: 0.4333333333 | V87: 400 | W87: 202 | X87: 0 | Y87: 83 | AA87: =IF(ISNA(P87)=TRUE,"hors gamme",P87) -> GT 530-16 | AB87: gaz | AC87: 870 | AD87: 928
A88: 81 | B88: 870 | C88: GT 530-15 | D88: gaz | E88: 812 | F88: 870 | G88: 1465 | H88: 0.4069444444 | I88: 400 | J88: 202 | L88: 1 | O88: 84 | P88: GT 530-17 | Q88: fioul | R88: 928 | S88: 986 | T88: 1650 | U88: 0.4583333333 | V88: 400 | W88: 202 | X88: 0 | Y88: 84 | AA88: =IF(ISNA(P88)=TRUE,"hors gamme",P88) -> GT 530-17 | AB88: fioul | AC88: 928 | AD88: 986
A89: 82 | B89: 928 | C89: GT 530-16 | D89: fioul | E89: 870 | F89: 928 | G89: 1560 | H89: 0.4333333333 | I89: 400 | J89: 202 | L89: 1 | O89: 85 | P89: GT 530-17 | Q89: gaz | R89: 928 | S89: 986 | T89: 1650 | U89: 0.4583333333 | V89: 400 | W89: 202 | X89: 0 | Y89: 85 | AA89: GT 530-17 | AB89: gaz | AC89: 928 | AD89: 986
A90: 83 | B90: 928 | C90: GT 530-16 | D90: gaz | E90: 870 | F90: 928 | G90: 1560 | H90: 0.4333333333 | I90: 400 | J90: 202 | L90: 1 | O90: 86 | P90: C 610-1000 Eco | Q90: gaz | R90: 130 | S90: 998 | T90: 1586 | U90: 0.4405555556 | V90: 350 | W90: 0 | X90: 0 | Y90: 86 | AA90: C 610-1000 Eco | AB90: gaz | AC90: 130 | AD90: 998
A91: 84 | B91: 986 | C91: GT 530-17 | D91: fioul | E91: 928 | F91: 986 | G91: 1650 | H91: 0.4583333333 | I91: 400 | J91: 202 | L91: 1 | O91: 87 | P91: GT 530-18 | Q91: fioul | R91: 986 | S91: 1044 | T91: 1750 | U91: 0.4861111111 | V91: 400 | W91: 201 | X91: 0 | Y91: 87 | AA91: GT 530-18 | AB91: fioul | AC91: 986 | AD91: 1044
A92: 85 | B92: 986 | C92: GT 530-17 | D92: gaz | E92: 928 | F92: 986 | G92: 1650 | H92: 0.4583333333 | I92: 400 | J92: 202 | L92: 1 | O92: 88 | P92: GT 530-18 | Q92: gaz | R92: 986 | S92: 1044 | T92: 1750 | U92: 0.4861111111 | V92: 400 | W92: 201 | X92: 0 | Y92: 88 | AA92: GT 530-18 | AB92: gaz | AC92: 986 | AD92: 1044
A93: 86 | B93: 998 | C93: C 610-1000 Eco | D93: gaz | E93: 130 | F93: 998 | G93: 1586 | H93: 0.4405555556 | I93: 350 | L93: 1 | O93: 89 | P93: GT 530-19 | Q93: fioul | R93: 1044 | S93: 1102 | T93: 1840 | U93: 0.5111111111 | V93: 400 | W93: 201 | X93: 0 | Y93: 89 | AA93: GT 530-19 | AB93: fioul | AC93: 1044 | AD93: 1102
A94: 87 | B94: 1044 | C94: GT 530-18 | D94: fioul | E94: 986 | F94: 1044 | G94: 1750 | H94: 0.4861111111 | I94: 400 | J94: 201 | L94: 1 | O94: 90 | P94: GT 530-19 | Q94: gaz | R94: 1044 | S94: 1102 | T94: 1840 | U94: 0.5111111111 | V94: 400 | W94: 201 | X94: 0 | Y94: 90 | AA94: GT 530-19 | AB94: gaz | AC94: 1044 | AD94: 1102
A95: 88 | B95: 1044 | C95: GT 530-18 | D95: gaz | E95: 986 | F95: 1044 | G95: 1750 | H95: 0.4861111111 | I95: 400 | J95: 201 | L95: 1 | O95: 91 | P95: C 610-1140 Eco | Q95: gaz | R95: 156 | S95: 1146 | T95: 1814 | U95: 0.5038888889 | V95: 350 | W95: 0 | X95: 0 | Y95: 91 | AA95: C 610-1140 Eco | AB95: gaz | AC95: 156 | AD95: 1146
A96: 89 | B96: 1102 | C96: GT 530-19 | D96: fioul | E96: 1044 | F96: 1102 | G96: 1840 | H96: 0.5111111111 | I96: 400 | J96: 201 | L96: 1 | O96: 92 | P96: GT 530-20 | Q96: fioul | R96: 1102 | S96: 1160 | T96: 1930 | U96: 0.5361111111 | V96: 400 | W96: 201 | X96: 0 | Y96: 92 | AA96: GT 530-20 | AB96: fioul | AC96: 1102 | AD96: 1160
A97: 90 | B97: 1102 | C97: GT 530-19 | D97: gaz | E97: 1044 | F97: 1102 | G97: 1840 | H97: 0.5111111111 | I97: 400 | J97: 201 | L97: 1 | O97: 93 | P97: GT 530-20 | Q97: gaz | R97: 1102 | S97: 1160 | T97: 1930 | U97: 0.5361111111 | V97: 400 | W97: 201 | X97: 0 | Y97: 93 | AA97: GT 530-20 | AB97: gaz | AC97: 1102 | AD97: 1160
A98: 91 | B98: 1146 | C98: C 610-1140 Eco | D98: gaz | E98: 156 | F98: 1146 | G98: 1814 | H98: 0.5038888889 | I98: 350 | L98: 1 | O98: 94 | P98: GT 530-21 | Q98: fioul | R98: 1160 | S98: 1218 | T98: 2030 | U98: 0.5638888889 | V98: 500 | W98: 201 | X98: 0 | Y98: 94 | AA98: GT 530-21 | AB98: fioul | AC98: 1160 | AD98: 1218
A99: 92 | B99: 1160 | C99: GT 530-20 | D99: fioul | E99: 1102 | F99: 1160 | G99: 1930 | H99: 0.5361111111 | I99: 400 | J99: 201 | L99: 1 | O99: 95 | P99: GT 530-21 | Q99: gaz | R99: 1160 | S99: 1218 | T99: 2030 | U99: 0.5638888889 | V99: 500 | W99: 201 | X99: 0 | Y99: 95 | AA99: =IF(ISNA(P99)=TRUE,"hors gamme",P99) -> GT 530-21 | AB99: =IF(ISNA(Q99)=TRUE,"",Q99) -> gaz | AC99: 1160 | AD99: 1218
A100: 93 | B100: 1160 | C100: GT 530-20 | D100: gaz | E100: 1102 | F100: 1160 | G100: 1930 | H100: 0.5361111111 | I100: 400 | J100: 201 | L100: 1 | O100: 96 | P100: GT 530-22 | Q100: fioul | R100: 1218 | S100: 1276 | T100: 2125 | U100: 0.5902777778 | V100: 500 | W100: 201 | X100: 0 | Y100: 96 | AA100: =IF(ISNA(P100)=TRUE,"hors gamme",P100) -> GT 530-22 | AB100: fioul | AC100: 1218 | AD100: 1276
A101: 94 | B101: 1218 | C101: GT 530-21 | D101: fioul | E101: 1160 | F101: 1218 | G101: 2030 | H101: 0.5638888889 | I101: 500 | J101: 201 | L101: 1 | O101: 97 | P101: GT 530-22 | Q101: gaz | R101: 1218 | S101: 1276 | T101: 2125 | U101: 0.5902777778 | V101: 500 | W101: 201 | X101: 0 | Y101: 97 | AA101: GT 530-22 | AB101: gaz | AC101: 1218 | AD101: 1276
A102: 95 | B102: 1218 | C102: GT 530-21 | D102: gaz | E102: 1160 | F102: 1218 | G102: 2030 | H102: 0.5638888889 | I102: 500 | J102: 201 | L102: 1 | O102: 98 | P102: GT 530-23 | Q102: fioul | R102: 1276 | S102: 1334 | T102: 2225 | U102: 0.6180555556 | V102: 500 | W102: 200 | X102: 0 | Y102: 98 | AA102: GT 530-23 | AB102: fioul | AC102: 1276 | AD102: 1334
A103: 96 | B103: 1276 | C103: GT 530-22 | D103: fioul | E103: 1218 | F103: 1276 | G103: 2125 | H103: 0.5902777778 | I103: 500 | J103: 201 | L103: 1 | O103: 99 | P103: GT 530-23 | Q103: gaz | R103: 1276 | S103: 1334 | T103: 2225 | U103: 0.6180555556 | V103: 500 | W103: 200 | X103: 0 | Y103: 99 | AA103: GT 530-23 | AB103: gaz | AC103: 1276 | AD103: 1334
A104: 97 | B104: 1276 | C104: GT 530-22 | D104: gaz | E104: 1218 | F104: 1276 | G104: 2125 | H104: 0.5902777778 | I104: 500 | J104: 201 | L104: 1 | O104: 100 | P104: GT 530-24 | Q104: fioul | R104: =VLOOKUP(O104,$A$8:$L$110,5,FALSE) -> 1334 | S104: =VLOOKUP(O104,$A$8:$L$110,6,FALSE) -> 1392 | T104: =VLOOKUP(O104,$A$8:$L$110,7,FALSE) -> 2330 | U104: =VLOOKUP(O104,$A$8:$L$110,8,FALSE) -> 0.6472222222 | V104: =VLOOKUP(O104,$A$8:$L$110,9,FALSE) -> 500 | W104: =VLOOKUP(O104,$A$8:$L$110,10,FALSE) -> 200 | X104: =VLOOKUP(O104,$A$8:$L$110,11,FALSE) -> 0 | Y104: 100 | AA104: GT 530-24 | AB104: fioul | AC104: 1334 | AD104: 1392
A105: 98 | B105: 1334 | C105: GT 530-23 | D105: fioul | E105: 1276 | F105: 1334 | G105: 2225 | H105: 0.6180555556 | I105: 500 | J105: 200 | L105: 1 | O105: 101 | P105: =VLOOKUP(O105,$A$8:$K$110,3,FALSE) -> GT 530-24 | Q105: =VLOOKUP(O105,$A$8:$K$110,4,FALSE) -> gaz | R105: 1334 | S105: 1392 | T105: 2330 | U105: 0.6472222222 | V105: 500 | W105: 200 | X105: 0 | Y105: 101 | AA105: GT 530-24 | AB105: gaz | AC105: 1334 | AD105: 1392
A106: 99 | B106: 1334 | C106: GT 530-23 | D106: gaz | E106: 1276 | F106: 1334 | G106: 2225 | H106: 0.6180555556 | I106: 500 | J106: 200 | L106: 1 | O106: 102 | P106: GT 530-25 | Q106: fioul | R106: 1392 | S106: 1450 | T106: 2430 | U106: 0.675 | V106: 500 | W106: 200 | X106: 0 | Y106: 102 | AA106: GT 530-25 | AB106: fioul | AC106: 1392 | AD106: 1450
A107: 100 | B107: 1392 | C107: GT 530-24 | D107: fioul | E107: 1334 | F107: 1392 | G107: 2330 | H107: 0.6472222222 | I107: 500 | J107: 200 | L107: 1 | O107: 103 | P107: GT 530-25 | Q107: gaz | R107: 1392 | S107: 1450 | T107: 2430 | U107: 0.675 | V107: 500 | W107: 200 | X107: 0 | Y107: 103 | AA107: GT 530-25 | AB107: gaz | AC107: 1392 | AD107: 1450
A108: 101 | B108: 1392 | C108: GT 530-24 | D108: gaz | E108: 1334 | F108: 1392 | G108: 2330 | H108: 0.6472222222 | I108: 500 | J108: 200 | L108: 1 | O108: 104 | Y108: 104 | AA108: hors gamme
A109: 102 | B109: 1450 | C109: GT 530-25 | D109: fioul | E109: 1392 | F109: 1450 | G109: 2430 | H109: 0.675 | I109: 500 | J109: 200 | L109: 1 | O109: 105 | Y109: 105 | AA109: hors gamme
A110: 103 | B110: 1450 | C110: GT 530-25 | D110: gaz | E110: 1392 | F110: 1450 | G110: 2430 | H110: =G110/3600 -> 0.675 | I110: 500 | J110: 200 | L110: =IF($B$4<=F110,1,0) -> 1 | O110: 106 | Y110: 106 | AA110: hors gamme
O111: 107 | Y111: 107 | AA111: hors gamme
O112: 108 | Y112: 108 | AA112: hors gamme
O113: 109 | Y113: 109 | AA113: hors gamme
O114: 110 | Y114: 110 | AA114: =IF(ISNA(P114)=TRUE,"hors gamme",P114) -> hors gamme
O115: 111 | Y115: 111 | AA115: =IF(ISNA(P115)=TRUE,"hors gamme",P115) -> hors gamme
O116: 112 | Y116: 112 | AA116: hors gamme
O117: 113 | Y117: 113 | AA117: hors gamme
O118: 114 | Y118: 114 | AA118: hors gamme
O119: 115 | Y119: 115 | AA119: hors gamme
O120: 116 | Y120: 116 | AA120: hors gamme
O121: 117 | Y121: 117 | AA121: hors gamme
O122: 118 | Y122: 118 | AA122: hors gamme
O123: 119 | Y123: 119 | AA123: hors gamme
O124: 120 | Y124: 120 | AA124: hors gamme
O125: 121 | Y125: 121 | AA125: hors gamme
O126: 122 | Y126: 122 | AA126: =IF(ISNA(P126)=TRUE,"hors gamme",P126) -> hors gamme
O127: 123 | Y127: 123 | AA127: =IF(ISNA(P127)=TRUE,"hors gamme",P127) -> hors gamme
O128: 124 | Y128: 124 | AA128: hors gamme
O129: 125 | Y129: 125 | AA129: hors gamme
O130: 126 | Y130: 126 | AA130: hors gamme
O131: 127 | Y131: 127 | AA131: hors gamme
O132: 128 | Y132: 128 | AA132: hors gamme
O133: 129 | Y133: 129 | AA133: hors gamme
O134: 130 | Y134: 130 | AA134: hors gamme
O135: 131 | Y135: 131 | AA135: hors gamme
O136: 132 | R136: =VLOOKUP(O136,$A$8:$L$110,5,FALSE) ->  | S136: =VLOOKUP(O136,$A$8:$L$110,6,FALSE) ->  | T136: =VLOOKUP(O136,$A$8:$L$110,7,FALSE) ->  | U136: =VLOOKUP(O136,$A$8:$L$110,8,FALSE) ->  | V136: =VLOOKUP(O136,$A$8:$L$110,9,FALSE) ->  | W136: =VLOOKUP(O136,$A$8:$L$110,10,FALSE) ->  | X136: =VLOOKUP(O136,$A$8:$L$110,11,FALSE) ->  | Y136: 132 | AA136: hors gamme
O137: 133 | P137: =VLOOKUP(O137,$A$8:$K$110,3,FALSE) ->  | Q137: =VLOOKUP(O137,$A$8:$K$110,4,FALSE) ->  | Y137: 133 | AA137: hors gamme
O138: 134 | Y138: 134 | AA138: hors gamme
O139: 135 | Y139: 135 | AA139: =IF(ISNA(P139)=TRUE,"hors gamme",P139) -> hors gamme
O140: 136 | Y140: 136 | AA140: =IF(ISNA(P140)=TRUE,"hors gamme",P140) -> hors gamme
O141: 137 | Y141: 137 | AA141: hors gamme
O142: 138 | Y142: 138 | AA142: hors gamme
O143: 139 | Y143: 139 | AA143: hors gamme
O144: 140 | Y144: 140 | AA144: hors gamme
O145: 141 | Y145: 141 | AA145: hors gamme
O146: 142 | Y146: 142 | AA146: hors gamme
O147: 143 | Y147: 143 | AA147: hors gamme
O148: 144 | Y148: 144 | AA148: hors gamme
O149: 145 | Y149: 145 | AA149: hors gamme
O150: 146 | Y150: 146 | AA150: hors gamme
O151: 147 | Y151: 147 | AA151: hors gamme
O152: 148 | Y152: 148 | AA152: hors gamme
O153: 149 | Y153: 149 | AA153: hors gamme
O154: 150 | Y154: 150 | AA154: hors gamme

Sheet Base (hidden)
A3: Base Tubes ACIER | B3: (à masquer) | C3: (à masquer)
A4: Diamètre réel int. | B4: valeurs décaleés | C4: Réf décalées | D4: Référence
A5: 0 | B5: 13.2 | C5: AC - 17.2 * 2
A6: 13.2 | B6: 16.7 | C6: AC - 21.3 * 2.3 | D6: AC - 17.2 * 2
A7: 16.7 | B7: 22.3 | C7: AC - 26.9 * 2.3 | D7: AC - 21.3 * 2.3
A8: 22.3 | B8: 27.9 | C8: AC - 33.7 * 2.9 | D8: AC - 26.9 * 2.3
A9: 27.9 | B9: 36.6 | C9: AC - 42.4 * 2.9 | D9: AC - 33.7 * 2.9
A10: 36.6 | B10: 42.5 | C10: AC - 48.3 * 2.9 | D10: AC - 42.4 * 2.9
A11: 42.5 | B11: 53.9 | C11: AC - 60.3 * 3.2 | D11: AC - 48.3 * 2.9
A12: 53.9 | B12: 63.6 | C12: AC - 70.0 * 3.2 | D12: AC - 60.3 * 3.2
A13: 63.6 | B13: 69.7 | C13: AC - 76.1 * 3.2 | D13: AC - 70.0 * 3.2
A14: 69.7 | B14: 82.5 | C14: AC - 88.9 * 3.2 | D14: AC - 76.1 * 3.2
A15: 82.5 | B15: 94.4 | C15: AC - 101.6 * 3.6 | D15: AC - 88.9 * 3.2
A16: 94.4 | B16: 100.8 | C16: AC - 108 * 3.6 | D16: AC - 101.6 * 3.6
A17: 100.8 | B17: 107.1 | C17: AC - 114.3 * 3.6 | D17: AC - 108 * 3.6
A18: 107.1 | B18: 125 | C18: AC - 133 * 4.0 | D18: AC - 114.3 * 3.6
A19: 125 | B19: 131.7 | C19: AC - 139.7 * 4.0 | D19: AC - 133 * 4.0
A20: 131.7 | B20: 150 | C20: AC - 159 * 4.5 | D20: AC - 139.7 * 4.0
A21: 150 | B21: 159.3 | C21: AC - 168.3 * 4.5 | D21: AC - 159 * 4.5
A22: 159.3 | B22: 183.1 | C22: AC - 193.7 * 5.4 | D22: AC - 168.3 * 4.5
A23: 183.1 | B23: 207.3 | C23: AC - 219.1 * 5.9 | D23: AC - 193.7 * 5.4
A24: 207.3 | B24: 231.9 | C24: AC - 244.5 * 6.3 | D24: AC - 219.1 * 5.9
A25: 231.9 | B25: 260.4 | C25: AC - 273 * 6.3 | D25: AC - 244.5 * 6.3
A26: 260.4 | B26: 309.7 | C26: AC - 323.9 * 7.1 | D26: AC - 273 * 6.3
A27: 309.7 | B27: 339.6 | C27: AC - 355.6 * 8.0 | D27: AC - 323.9 * 7.1
A28: 339.6 | B28: 352 | C28: AC - 368 * 8.0 | D28: AC - 355.6 * 8.0
A29: 352 | B29: 388.8 | C29: AC - 406.4 * 8.8 | D29: AC - 368 * 8.0
A30: 388.8 | B30: 399 | C30: AC - 419 * 10.0 | D30: AC - 406.4 * 8.8
A31: 399 | D31: AC - 419 * 10.0

Sheet MAJ (hidden)
A1: Date | B1: Auteur | C1: MAJ
A2: 2018-04-05 | B2: Alexandre Diebold | C2: Création outil à partir d'une ancienne version
